bitfinex/quotes_ETHUSD_20260113
["timestamp","ask_amount","ask_price","bid_price","bid_amount"]
[1768316581207,0.00080648,3135.1,3134.5,3.19028094]
[1768316581368,0.00080648,3135.1,3134.6,0.249]
[1768316581564,0.00080648,3135.1,3133.5,0.99925194]
[1768316581764,0.00080648,3135.1,3133.0,3.19179508]
[1768316581765,0.98595674,3135.1,3133.0,0.99925194]
[1768316581965,0.98595674,3135.1,3132.6,0.99925194]
[1768316582169,0.98515026,3134.9,3132.7,0.249]
[1768316582400,0.98515026,3134.7,3132.9,6.38386158]
[1768316582580,0.98515026,3134.7,3133.0,0.249]
[1768316583399,0.98515026,3134.7,3133.1,0.249]
[1768316583612,6.37999234,3134.8,3133.1,0.249]
[1768316583613,3.18999617,3134.8,3133.1,0.99925194]
[1768316583829,3.18999617,3134.8,3132.9,15.95965395]
[1768316583830,0.98515026,3134.7,3132.9,9.57579237]
[1768316584136,0.98515026,3134.5,3133.0,1.00724796]
[1768316584496,7.36595678,3134.4,3133.1,3.19172704]
[1768316584746,0.98515026,3134.3,3133.0,6.38363673]
[1768316584890,0.98515026,3134.3,3133.0,3.19180782]
[1768316585090,0.97676224,3134.1,3133.0,3.44080782]
[1768316585292,0.97676224,3134.1,3133.0,6.63263673]
[1768316585605,0.97676224,3134.1,3133.3,0.002]
[1768316586204,1.055636,3134.2,3133.3,0.002]
[1768316586414,3.19040326,3134.4,3133.3,0.002]
[1768316586615,4.16707976,3134.5,3133.3,0.002]
[1768316586817,7.35739728,3134.5,3133.3,0.002]
[1768316587018,0.97676224,3134.4,3133.3,0.002]
[1768316587192,0.97676224,3134.4,3133.3,0.251]
[1768316587392,2.03153372,3134.3,3133.3,0.251]
[1768316587611,2.03153372,3134.3,3133.3,0.002]
[1768316587814,2.03153372,3134.3,3133.3,0.251]
[1768316588495,2.03153372,3134.3,3133.4,6.3828429]
[1768316588729,4.16690501,3134.7,3133.4,9.57426435]
[1768316588906,7.35704778,3134.7,3133.4,9.57426435]
[1768316589111,0.001,3134.8,3133.4,10.48636625]
[1768316589504,0.001,3134.8,3133.5,0.9121019]
[1768316589668,0.00080648,3135.1,3133.5,0.9121019]
[1768316589814,0.00080648,3135.1,3133.7,0.9121019]
[1768316590009,3.19050893,3135.1,3133.8,0.249]
[1768316590513,0.00080648,3135.1,3133.9,0.249]
[1768316591213,0.00080648,3135.1,3133.8,9.5730423]
[1768316591409,0.00080648,3135.1,3134.0,0.249]
[1768316592347,0.97756872,3135.1,3133.8,6.3820282]
[1768316592515,0.97676224,3134.9,3133.7,0.249]
[1768316593055,0.97676224,3134.9,3133.8,0.249]
[1768316593753,0.00080648,3135.1,3133.8,0.249]
[1768316593922,3.19051712,3135.1,3133.8,0.249]
[1768316594261,0.00080648,3135.1,3133.8,1.1611019]
[1768316594413,0.00080648,3135.1,3133.9,12.76364912]
[1768316594636,0.00080648,3135.1,3134.0,0.9121019]
[1768316594830,0.00080648,3135.1,3133.9,15.9545614]
[1768316594831,0.97676224,3136.3,3134.7,0.00080656]
[1768316595030,3.18871064,3136.1,3134.8,0.249]
[1768316595231,3.18959371,3136.0,3134.8,0.249]
[1768316595428,3.50855308,3136.0,3134.9,0.249]
[1768316595634,6.69734103,3136.0,3134.9,0.249]
[1768316596455,4.1767889,3135.8,3134.7,0.00080656]
[1768316596785,0.98781002,3135.7,3134.7,0.00080656]
[1768316596935,0.98781002,3135.7,3134.3,0.00081416]
[1768316597134,0.00080656,3135.1,3134.3,0.00081416]
[1768316599354,0.98861658,3135.1,3134.3,0.00081416]
[1768316599666,0.98781002,3135.0,3134.3,0.00081416]
[1768316600472,0.98781002,3134.8,3133.9,0.00080523]
[1768316600683,0.98781002,3134.6,3133.6,0.002]
[1768316600894,0.98781002,3134.4,3133.6,0.002]
[1768316601251,0.98781002,3134.4,3133.3,0.002]
[1768316601994,0.98781002,3134.2,3133.0,1e-08]
[1768316602288,0.98781002,3134.0,3133.0,1e-08]
[1768316602487,0.98781002,3133.6,3133.0,1e-08]
[1768316602649,2.0439258,3133.5,3133.0,1e-08]
[1768316602851,0.98781002,3133.4,3132.0,0.002]
[1768316603103,0.98781002,3133.2,3132.0,0.002]
[1768316604475,7.3712641,3133.1,3132.0,0.002]
[1768316604679,4.17953706,3133.1,3132.0,0.002]
[1768316604980,3.19165454,3133.2,3132.0,0.002]
[1768316605184,0.25,3133.3,3132.0,0.002]
[1768316605550,3.4415355,3133.3,3132.0,0.002]
[1768316605845,0.25,3133.3,3132.0,0.002]
[1768316606151,0.25,3133.3,3132.0,0.94497868]
[1768316606345,0.25,3133.8,3132.0,0.94497868]
[1768316606552,4.88387421,3134.7,3132.0,0.94497868]
[1768316606553,3.19050505,3134.3,3132.2,0.94297868]
[1768316606749,6.3810101,3134.3,3132.4,0.94297868]
[1768316607367,3.19050505,3134.3,3132.4,0.94297868]
[1768316608381,6.37999615,3134.8,3132.4,0.94297868]
[1768316608567,6.37999615,3134.8,3133.1,9.57518112]
[1768316608768,6.37999615,3134.8,3133.2,0.249]
[1768316608769,0.98781002,3134.6,3133.2,0.249]
[1768316608969,0.98781002,3134.6,3133.1,9.57518112]
[1768316609177,0.98781002,3134.6,3133.1,6.38345408]
[1768316609386,0.98781002,3134.6,3133.1,3.19172704]
[1768316609624,0.25,3134.5,3132.0,18.63781657]
[1768316609794,0.98781002,3134.4,3133.0,3.19182882]
[1768316610155,0.98781002,3134.4,3132.0,0.94497868]
[1768316610156,0.98781002,3134.4,3132.9,3.19188473]
[1768316610360,0.98781002,3134.4,3133.0,3.19181446]
[1768316610578,0.98781002,3134.4,3132.6,0.249]
[1768316610579,0.98781002,3134.2,3132.1,12.77094231]
[1768316610887,0.98781002,3134.2,3132.1,6.38545015]
[1768316611074,0.98781002,3134.0,3132.1,9.82719623]
[1768316611275,0.98781002,3133.8,3132.1,9.82719623]
[1768316612285,0.98781002,3133.8,3132.3,0.002]
[1768316612687,7.37004188,3133.7,3132.3,6.38708444]
[1768316613057,0.98781002,3133.6,3132.3,3.19454222]
[1768316613258,9.57334779,3133.7,3132.3,3.44354222]
[1768316613259,2.0439258,3133.5,3132.3,3.44354222]
[1768316613658,2.0439258,3133.5,3132.3,3.19454222]
[1768316614071,2.0439258,3133.5,3132.3,0.002]
[1768316614277,0.98781002,3133.4,3132.3,0.002]
[1768316614472,1.05611578,3133.5,3132.3,0.002]
[1768316614473,0.98781002,3133.2,3132.3,0.002]
[1768316614671,0.98781002,3133.0,3132.3,0.002]
[1768316615277,0.25,3133.3,3132.3,0.002]
[1768316615485,3.19152331,3133.3,3132.3,0.002]
[1768316615695,0.9254946,3133.9,3132.3,0.002]
[1768316616198,7.30731916,3133.9,3132.3,0.002]
[1768316616398,0.75573192,3133.8,3132.3,0.002]
[1768316616563,0.9254946,3133.7,3132.3,0.002]
[1768316616883,0.9254946,3132.8,3131.7,0.002]
[1768316617084,0.9254946,3132.6,3131.3,0.005]
[1768316617302,15.9560888,3133.6,3131.3,6.38945902]
[1768316617303,0.9254946,3133.2,3131.3,6.38945902]
[1768316617468,0.25,3133.1,3131.4,0.6389459]
[1768316617665,0.9254946,3133.0,3131.4,0.6389459]
[1768316618067,0.9254946,3133.0,3131.3,0.00235378]
[1768316618284,0.9254946,3133.0,3131.3,6.38947623]
[1768316618789,0.9254946,3132.8,3131.3,0.00235378]
[1768316618988,3.19193079,3132.9,3131.3,0.93764571]
[1768316619192,3.19131961,3133.5,3131.3,0.93764571]
[1768316619388,0.9254946,3133.4,3131.3,0.93764571]
[1768316619706,0.9254946,3133.4,3131.5,0.93529193]
[1768316620012,6.79432064,3133.5,3131.5,0.93529193]
[1768316620174,0.9254946,3133.4,3131.5,0.93529193]
[1768316620374,0.9254946,3133.4,3131.3,0.00235378]
[1768316620570,13.17695986,3133.5,3131.3,0.00235378]
[1768316620571,0.9254946,3133.2,3131.3,0.00235378]
[1768316620810,0.9254946,3132.9,3131.3,0.00235378]
[1768316621504,1.1754946,3132.9,3131.3,0.00235378]
[1768316621719,0.41168142,3133.5,3131.3,0.93764571]
[1768316622012,6.3828429,3133.4,3131.3,0.93764571]
[1768316622174,6.3828429,3133.4,3131.5,0.93529193]
[1768316622379,3.19142145,3133.4,3131.5,0.93529193]
[1768316622579,3.19142145,3133.4,3131.7,0.93529193]
[1768316622780,3.19133389,3133.5,3131.9,0.93529193]
[1768316623112,3.62801674,3133.5,3131.9,0.93529193]
[1768316623484,4.55351134,3133.5,3131.9,0.93529193]
[1768316623684,4.55351134,3133.5,3131.9,1.18429193]
[1768316624016,7.74484523,3133.5,3132.0,6.38569604]
[1768316624205,4.55351134,3133.5,3132.0,9.57854406]
[1768316624379,7.74484523,3133.5,3132.0,9.57854406]
[1768316624581,3.19133389,3133.5,3132.0,9.57854406]
[1768316624820,0.001,3134.1,3132.5,0.93529193]
[1768316624821,3.19082056,3134.0,3132.5,0.93529193]
[1768316625019,0.001,3134.1,3132.0,22.44035032]
[1768316625020,0.001,3134.1,3132.7,0.93529193]
[1768316625180,0.001,3134.1,3132.8,0.249]
[1768316625381,3.19175485,3134.1,3132.8,0.249]
[1768316625602,3.19175485,3134.1,3132.7,0.93529193]
[1768316625916,0.001,3134.1,3132.8,0.249]
[1768316626101,0.001,3134.1,3133.0,0.93529193]
[1768316626299,0.001,3134.1,3133.2,0.93529193]
[1768316627129,3.18989441,3134.9,3133.2,0.93529193]
[1768316627506,6.37978882,3134.9,3133.2,0.93529193]
[1768316627982,7.30528342,3134.9,3133.3,6.38304662]
[1768316628178,0.9254946,3134.8,3133.3,3.19152331]
[1768316628391,0.9254946,3134.6,3133.3,3.53557564]
[1768316628827,0.9254946,3134.6,3133.3,6.72709895]
[1768316629291,0.9254946,3134.6,3133.3,3.53557564]
[1768316629699,0.9254946,3134.6,3133.3,6.72709895]
[1768316630222,6.38060296,3134.5,3133.3,6.72709895]
[1768316630433,0.98060976,3134.4,3133.3,6.72709895]
[1768316630928,0.98060976,3134.4,3133.3,3.53557564]
[1768316631131,1.90610436,3134.4,3133.3,3.53557564]
[1768316631431,0.9254946,3134.3,3132.7,0.249]
[1768316631626,0.9254946,3134.3,3132.7,3.4410887]
[1768316632016,0.9254946,3134.3,3133.1,3.19169754]
[1768316632221,3.19060685,3134.2,3132.6,9.57666992]
[1768316632594,3.19060685,3134.2,3132.7,0.93529193]
[1768316632796,0.25,3134.1,3132.7,0.93529193]
[1768316633220,0.9254946,3134.0,3132.6,6.38443344]
[1768316634242,0.9254946,3133.8,3132.4,6.3848806]
[1768316635399,6.38182456,3133.9,3132.4,10.51261283]
[1768316635400,3.19091228,3133.9,3132.4,10.51261283]
[1768316635808,0.9254946,3134.3,3132.5,0.93529193]
[1768316636019,0.9254946,3134.8,3132.5,0.93529193]
[1768316636222,6.3803994,3134.6,3132.7,0.93529193]
[1768316636427,0.25,3134.5,3132.9,0.93529193]
[1768316636659,6.3803994,3134.6,3132.9,0.93529193]
[1768316636952,0.25,3134.4,3132.9,0.93529193]
[1768316637909,0.25,3134.4,3132.8,0.002]
[1768316637910,0.9254946,3134.3,3132.8,0.002]
[1768316638211,0.9254946,3133.7,3132.8,0.002]
[1768316638409,0.9254946,3133.5,3132.8,0.002]
[1768316640257,9.57426435,3133.4,3132.8,0.002]
[1768316640424,1.0499759,3133.3,3132.8,0.002]
[1768316640619,3.19142145,3133.4,3132.8,0.002]
[1768316640824,0.25,3133.2,3132.8,0.002]
[1768316641037,0.25,3133.2,3131.8,3.19305191]
[1768316641038,1.1754946,3133.2,3131.8,3.19305191]
[1768316641249,0.9254946,3133.1,3131.4,3.19337369]
[1768316641419,0.9254946,3133.0,3131.3,0.00235378]
[1768316641737,0.9254946,3132.6,3131.3,0.00235378]
[1768316641961,0.9254946,3132.4,3131.3,0.00235378]
[1768316642368,0.9254946,3132.2,3131.3,0.00235378]
[1768316642653,0.9254946,3132.2,3131.2,0.002]
[1768316642654,0.9254946,3132.2,3130.7,0.002]
[1768316643570,0.25,3132.1,3130.7,0.002]
[1768316643939,1.07531213,3132.1,3130.7,0.002]
[1768316644135,3.19254222,3132.3,3130.7,0.93729193]
[1768316644356,0.25,3132.2,3130.7,0.93729193]
[1768316644554,3.19274608,3132.1,3130.8,10.51750733]
[1768316644763,0.25,3132.2,3130.9,0.92162027]
[1768316644956,0.0158564,3134.0,3130.9,0.92162027]
[1768316644957,3.19236247,3132.5,3130.9,0.92162027]
[1768316645274,3.19131961,3133.5,3131.1,0.92162027]
[1768316645488,3.19131961,3133.5,3131.0,0.249]
[1768316645489,3.19131961,3133.5,3132.5,0.00765502]
[1768316645663,0.25,3133.4,3132.5,0.00765502]
[1768316645868,3.19131961,3133.5,3132.5,0.00765502]
[1768316646058,0.25,3133.5,3132.5,0.00765502]
[1768316646559,6.3828429,3133.4,3132.5,0.00765502]
[1768316646875,6.3828429,3133.4,3131.4,0.92162027]
[1768316646876,0.91328429,3133.3,3131.4,4.11501929]
[1768316647082,0.97926282,3133.2,3131.8,3.1929632]
[1768316647382,0.97926282,3133.2,3130.9,0.92162027]
[1768316647544,0.97926282,3133.2,3131.0,0.249]
[1768316647743,0.97926282,3133.2,3131.0,1.17062027]
[1768316648094,1.16851753,3133.1,3131.4,3.19341073]
[1768316648288,1.41851753,3133.1,3131.9,3.19290968]
[1768316648501,3.19182891,3133.0,3131.3,0.92162027]
[1768316648778,3.4417331,3133.1,3131.3,0.92162027]
[1768316649139,6.6334662,3133.1,3131.3,0.92162027]
[1768316649647,3.4417331,3133.1,3131.3,0.92162027]
[1768316649846,6.6334662,3133.1,3131.3,0.92162027]
[1768316650072,3.19163806,3133.2,3131.3,0.92162027]
[1768316650774,3.19163806,3133.2,3131.8,0.92162027]
[1768316651075,3.19163806,3133.2,3131.9,0.249]
[1768316651250,0.97926282,3133.8,3131.9,1.17062027]
[1768316651251,0.001,3132.9,3131.9,1.17062027]
[1768316651457,0.001,3132.9,3132.0,1.17062027]
[1768316651658,0.001,3132.9,3131.7,0.002]
[1768316651858,0.001,3132.9,3131.8,0.249]
[1768316652880,0.001,3132.9,3131.9,6.38589992]
[1768316653046,0.001,3132.9,3132.0,0.66348999]
[1768316654259,3.19132416,3133.5,3132.1,0.92162027]
[1768316654465,3.1910141,3133.8,3132.2,0.249]
[1768316654662,3.1910141,3133.8,3132.4,9.5773209]
[1768316654882,3.19060685,3134.2,3132.5,0.92162027]
[1768316655049,3.60759382,3134.2,3132.6,1.46042035]
[1768316655774,6.79820067,3134.2,3132.6,1.46042035]
[1768316656156,3.19060685,3134.2,3132.6,1.46042035]
[1768316656345,3.19047431,3134.4,3132.7,0.98468958]
[1768316656550,0.001,3134.5,3132.6,0.53880008]
[1768316656551,0.001,3134.5,3132.9,0.98468958]
[1768316656879,0.001,3134.5,3133.0,10.56017631]
[1768316657046,0.001,3134.5,3133.1,0.98468958]
[1768316657252,0.001,3134.5,3133.2,0.66348999]
[1768316657684,0.001,3134.5,3133.3,0.98468958]
[1768316657887,0.001,3134.5,3133.4,1.23368958]
[1768316658215,0.00080656,3135.1,3133.9,7.18246491]
[1768316658413,0.00080656,3135.1,3134.0,0.53880008]
[1768316658414,6.38022092,3135.1,3134.0,0.53880008]
[1768316658604,3.19049747,3135.1,3133.5,0.98468958]
[1768316658822,0.00080656,3135.1,3133.7,0.98468958]
[1768316659379,0.00080656,3135.1,3133.9,0.98468958]
[1768316659605,3.18938572,3135.4,3134.7,0.00080664]
[1768316660123,0.99004206,3135.3,3134.7,0.00080664]
[1768316660278,0.73688135,3135.2,3134.7,0.00080664]
[1768316660608,0.99004206,3135.3,3134.7,0.00080664]
[1768316660799,3.18958918,3135.2,3134.7,0.00080664]
[1768316661176,3.18918229,3135.6,3134.7,0.00080664]
[1768316661394,0.25,3135.5,3134.7,0.00080664]
[1768316661904,6.62836458,3135.6,3134.7,0.00080664]
[1768316662699,6.37836458,3135.6,3134.7,0.00080664]
[1768316663005,6.37816116,3135.7,3134.7,0.00080664]
[1768316663209,3.18899246,3135.8,3134.7,0.00080664]
[1768316663577,6.37798492,3135.8,3134.7,0.00080664]
[1768316664183,11.53886398,3135.8,3134.7,0.00080664]
[1768316664503,0.001,3135.3,3134.7,0.00080664]
[1768316665709,0.00080664,3135.1,3134.3,6.3810101]
[1768316666110,0.00080664,3135.1,3133.6,0.98468958]
[1768316666296,0.00080664,3135.1,3133.8,3.1909431]
[1768316666475,0.00080664,3135.1,3133.9,3.19167508]
[1768316666679,0.25080664,3135.1,3134.0,0.31916751]
[1768316666878,0.25080664,3135.1,3134.2,3.19060315]
[1768316667075,0.00080664,3135.1,3133.9,0.00080564]
[1768316667286,0.00080664,3135.1,3133.9,0.98549522]
[1768316667781,0.00080664,3135.1,3134.0,0.98468958]
[1768316668079,0.00080664,3135.1,3133.9,6.19858097]
[1768316668080,0.9908487,3135.1,3133.9,0.00080564]
[1768316668802,1.05683774,3135.1,3133.9,0.00080564]
[1768316669109,0.00080664,3135.1,3133.9,0.00080564]
[1768316669596,0.00080664,3135.1,3133.9,0.24980564]
[1768316671105,0.00080664,3135.1,3134.0,6.38162092]
[1768316672086,0.00080664,3135.1,3134.1,0.98468958]
[1768316672618,0.00080664,3135.1,3134.0,6.38162092]
[1768316672913,0.00080664,3135.1,3134.1,0.63824266]
[1768316673088,0.00080664,3135.1,3134.2,0.249]
[1768316673284,0.00080664,3135.1,3134.3,3.19050505]
[1768316674418,0.00080576,3136.0,3134.5,0.98468958]
[1768316674637,0.00080576,3136.0,3134.7,0.9854963]
[1768316674788,0.00080576,3136.0,3134.8,0.249]
[1768316674987,3.18903457,3136.6,3135.0,0.93098265]
[1768316675222,3.18903457,3136.6,3135.6,0.00080584]
[1768316675422,0.00080408,3136.6,3135.6,0.00080584]
[1768316675834,0.00080408,3136.6,3135.6,0.93178849]
[1768316676617,0.0008024,3137.2,3136.2,0.00080416]
[1768316676930,3.18841096,3137.2,3136.3,0.249]
[1768316677108,6.37601952,3137.2,3136.3,0.249]
[1768316677429,3.82601291,3137.2,3136.2,0.00080416]
[1768316677646,0.63840435,3137.2,3136.2,0.00080416]
[1768316677799,6.62591396,3137.2,3136.2,0.00080416]
[1768316677999,6.37591396,3137.2,3136.2,0.00080416]
[1768316678395,6.37595242,3137.2,3136.2,0.00080416]
[1768316678600,0.0008024,3137.2,3136.2,0.00080416]
[1768316678793,0.00080504,3137.8,3136.3,0.249]
[1768316679095,0.00080504,3137.8,3136.4,0.249]
[1768316679494,6.37472122,3137.8,3136.5,3.43726717]
[1768316679739,1.05188119,3137.7,3136.6,0.249]
[1768316679897,0.95722135,3137.6,3136.4,3.18829793]
[1768316680247,0.95722135,3137.6,3136.2,0.00080416]
[1768316680524,0.95722135,3137.6,3136.3,3.18846203]
[1768316680828,0.95722135,3137.6,3136.2,0.00080416]
[1768316681031,0.95722135,3137.4,3136.2,0.00080416]
[1768316681463,0.95722135,3137.2,3136.2,0.00080416]
[1768316682034,6.37490836,3137.3,3136.2,0.00080416]
[1768316682232,3.18745418,3137.3,3136.2,0.00080416]
[1768316682534,3.38818215,3137.5,3136.2,0.00080416]
[1768316682733,0.43454035,3137.4,3136.2,0.00080416]
[1768316682935,0.43454035,3137.4,3136.3,0.249]
[1768316683555,3.18745418,3137.3,3136.3,3.43744491]
[1768316683715,6.37490836,3137.3,3136.3,3.18845432]
[1768316684032,0.68094487,3137.2,3136.3,6.37692481]
[1768316684234,0.68094487,3137.2,3136.3,3.18845432]
[1768316684557,0.95722135,3138.1,3136.3,6.37692481]
[1768316684713,7.33137604,3137.7,3136.4,0.249]
[1768316684915,7.33137604,3137.7,3136.3,6.37692481]
[1768316685155,7.33137604,3137.7,3136.5,0.249]
[1768316685311,0.95722135,3137.6,3136.6,0.249]
[1768316685644,7.10769316,3137.5,3136.6,0.249]
[1768316686140,3.92041538,3137.5,3136.6,6.62527559]
[1768316686339,3.18778182,3137.8,3136.6,6.62527559]
[1768316686540,0.00080504,3137.8,3136.6,9.81344111]
[1768316686708,3.18780419,3137.8,3136.6,9.81344111]
[1768316687043,3.18780419,3137.8,3136.7,0.249]
[1768316687242,3.18780419,3137.8,3136.6,6.37627559]
[1768316687425,0.00080504,3137.8,3136.8,3.18796225]
[1768316687829,0.00080504,3137.8,3136.8,0.249]
[1768316688034,0.95802639,3137.8,3136.8,0.249]
[1768316688236,0.95802639,3137.8,3136.2,0.00080416]
[1768316688429,0.95802639,3137.8,3136.5,3.18820676]
[1768316688626,0.95802639,3137.8,3136.4,3.18833665]
[1768316688832,0.95802639,3137.8,3136.2,0.24980416]
[1768316689231,0.00080416,3136.6,3136.2,3.38836082]
[1768316689442,0.00080416,3136.6,3136.2,3.43755666]
[1768316690147,0.00080416,3136.6,3136.2,3.18855666]
[1768316690341,0.00080416,3136.6,3136.3,0.249]
[1768316690646,0.00080416,3136.6,3136.1,0.249]
[1768316690848,0.00080416,3136.6,3136.1,3.43761904]
[1768316691049,0.00080416,3136.6,3136.5,0.002]
[1768316691822,0.95802551,3136.6,3135.7,3.18906763]
[1768316692023,0.95802551,3136.6,3135.7,3.18904919]
[1768316692217,0.95802551,3136.6,3135.6,0.25060864]
[1768316692422,0.00080416,3136.6,3135.6,0.25060864]
[1768316692618,0.00080416,3136.6,3135.9,3.18878756]
[1768316692824,0.00080416,3136.6,3136.0,3.18877189]
[1768316693123,0.00080416,3136.6,3136.0,6.3775474]
[1768316693338,0.00080416,3136.6,3136.0,7.01530214]
[1768316693624,0.00080416,3136.6,3136.1,0.249]
[1768316694963,0.001,3137.5,3136.1,0.249]
[1768316694964,0.001,3137.5,3136.3,6.19777533]
[1768316695378,0.001,3137.5,3136.2,0.00080424]
[1768316695582,0.001,3137.5,3136.2,0.93178689]
[1768316695727,0.001,3137.5,3136.4,0.93098265]
[1768316695921,0.001,3137.5,3136.5,0.56453533]
[1768316696340,0.001,3137.5,3136.6,0.249]
[1768316698044,0.001,3137.5,3136.7,9.56419164]
[1768316698547,0.001,3138.3,3136.7,9.56419164]
[1768316698949,0.001,3138.3,3137.4,0.00080512]
[1768316699252,3.18585351,3138.9,3137.5,0.249]
[1768316699582,3.18576497,3139.0,3137.5,0.249]
[1768316699872,0.00080536,3139.1,3137.5,1.17998265]
[1768316699873,3.1865181,3139.1,3137.5,1.17998265]
[1768316700045,0.00080536,3139.1,3137.6,6.37429882]
[1768316700247,0.31943594,3139.1,3137.7,0.63775474]
[1768316700584,0.00080536,3139.1,3137.7,0.63775474]
[1768316700741,0.00080536,3139.1,3137.8,0.93098265]
[1768316701234,0.95802671,3139.1,3137.9,0.249]
[1768316701771,0.95802671,3139.1,3138.0,0.249]
[1768316701974,0.95802671,3139.1,3138.1,0.249]
[1768316701975,6.37145586,3139.0,3138.1,0.249]
[1768316702178,1.05151752,3138.9,3137.8,6.37389252]
[1768316702476,1.05151752,3138.9,3137.7,0.63775474]
[1768316702477,0.95722135,3138.8,3137.7,0.63775474]
[1768316702666,0.95722135,3138.8,3137.4,0.00080512]
[1768316703038,1.05151752,3138.9,3136.7,0.00080933]
[1768316703039,0.00080512,3137.8,3136.7,0.00080933]
[1768316703236,0.00080512,3137.8,3137.0,3.18773895]
[1768316703465,0.00080512,3137.8,3136.7,0.00080933]
[1768316703666,0.00080512,3137.8,3136.7,0.34460693]
[1768316703837,0.95722135,3138.8,3137.4,0.0008052]
[1768316704043,0.95722135,3138.6,3137.4,0.0008052]
[1768316704369,0.95722135,3138.5,3137.4,0.0008052]
[1768316704570,0.95722135,3137.7,3136.7,0.00080933]
[1768316705362,0.0008052,3137.8,3136.7,0.00080933]
[1768316706063,0.001,3137.5,3136.7,0.00080933]
[1768316706465,0.0008052,3137.8,3136.7,0.00080933]
[1768316708255,0.0008052,3137.8,3136.7,0.94992523]
[1768316708441,3.18623546,3138.5,3137.4,0.00080528]
[1768316708850,7.36442753,3138.5,3137.4,0.00080528]
[1768316709053,0.99195661,3138.4,3137.4,0.00080528]
[1768316709380,3.18593092,3138.8,3137.4,0.00080528]
[1768316710078,0.99195661,3138.7,3137.4,0.00080528]
[1768316710276,8.10060634,3138.6,3137.4,0.00080528]
[1768316710481,0.99195661,3138.5,3137.4,0.00080528]
[1768316711458,0.00080528,3137.8,3136.7,0.00080933]
[1768316711658,0.00080528,3137.8,3137.0,3.18772496]
[1768316712074,0.99276189,3137.8,3137.0,3.18773457]
[1768316712252,0.99276189,3137.8,3136.8,6.3759245]
[1768316712453,0.00080528,3137.8,3136.8,9.56388675]
[1768316713579,0.00080528,3137.8,3136.8,6.3759245]
[1768316713580,3.18775184,3137.8,3136.8,6.3759245]
[1768316713974,0.00080528,3137.8,3136.8,6.3759245]
[1768316714372,3.18633698,3138.4,3137.4,0.00080536]
[1768316714572,0.99195661,3138.2,3137.4,0.00080536]
[1768316716267,0.99718657,3138.0,3136.7,0.00080933]
[1768316716467,12.74656636,3138.1,3136.7,0.00080933]
[1768316716468,0.99718657,3137.7,3136.7,0.00080933]
[1768316716782,0.99718657,3137.5,3136.7,0.00080933]
[1768316717768,0.99718657,3137.5,3136.2,0.00080424]
[1768316717982,0.00080424,3136.6,3135.8,0.002]
[1768316718484,0.99799081,3136.6,3135.8,0.002]
[1768316718787,0.73741186,3136.5,3135.8,0.002]
[1768316719657,1.73459843,3136.5,3135.8,0.002]
[1768316720078,0.73741186,3136.5,3135.8,0.002]
[1768316720295,0.00080424,3136.6,3135.8,0.002]
[1768316720583,7.37168855,3137.5,3136.6,0.002]
[1768316720785,10.55893954,3137.5,3136.6,0.002]
[1768316720985,0.99718657,3137.4,3136.6,0.002]
[1768316721575,0.99718657,3137.3,3136.6,0.002]
[1768316722662,0.99718657,3137.1,3136.6,0.002]
[1768316722993,1.05598539,3137.0,3136.6,0.002]
[1768316723681,3.18755578,3137.2,3136.6,0.002]
[1768316724157,6.37511156,3137.2,3136.6,0.002]
[1768316724359,0.99718657,3137.1,3136.6,0.002]
[1768316724563,3.187759,3137.0,3136.6,0.002]
[1768316724760,3.18769272,3137.1,3136.6,0.002]
[1768316725164,6.37470516,3137.4,3136.6,0.002]
[1768316725362,0.73718917,3137.4,3136.6,0.002]
[1768316725567,6.37457738,3137.5,3136.6,0.002]
[1768316725791,3.18728869,3137.5,3136.6,0.002]
[1768316725974,3.1871812,3137.6,3136.6,0.002]
[1768316726570,6.3743624,3137.6,3136.6,0.002]
[1768316726772,6.37469788,3137.8,3136.6,0.002]
[1768316726970,7.45566301,3137.8,3136.6,0.002]
[1768316727397,6.37469788,3137.8,3136.6,0.002]
[1768316727597,3.18775162,3137.8,3136.6,0.002]
[1768316728193,0.00080536,3137.8,3136.6,0.95648771]
[1768316728691,0.001,3137.9,3137.1,0.95448771]
[1768316728907,0.001,3137.9,3137.4,0.00080544]
[1768316729073,0.001,3137.9,3137.4,0.63839714]
[1768316729277,0.00080933,3138.3,3137.4,0.63839714]
[1768316730907,0.00080933,3138.3,3137.5,9.56175297]
[1768316731214,0.00080933,3138.3,3137.5,13.70349167]
[1768316731365,0.00080536,3139.1,3137.5,13.70349167]
[1768316731366,3.18644218,3139.1,3137.5,13.70349167]
[1768316731561,7.81262844,3139.1,3137.6,0.56469837]
[1768316731787,0.99718657,3139.0,3137.6,0.56469837]
[1768316732962,4.18294471,3139.0,3137.7,9.56114349]
[1768316733174,4.18294471,3139.0,3137.8,0.249]
[1768316733568,7.36870285,3139.0,3137.8,0.249]
[1768316733769,3.62984245,3139.1,3137.9,0.6375917]
[1768316734587,0.00080536,3139.1,3137.9,0.6375917]
[1768316734794,0.001,3138.0,3137.9,0.6375917]
[1768316734970,0.00080536,3139.1,3138.0,9.56022942]
[1768316735392,0.00080536,3139.1,3138.0,12.74697256]
[1768316735589,0.00080536,3139.1,3138.1,0.91829053]
[1768316735789,0.00080536,3139.1,3138.2,0.56469837]
[1768316735994,0.00080536,3139.1,3138.3,0.91829053]
[1768316736182,0.00080482,3139.7,3138.7,0.00080544]
[1768316736379,3.18614538,3139.6,3138.7,0.00080544]
[1768316736997,7.33913825,3139.4,3138.7,0.00080544]
[1768316737324,0.73391383,3139.3,3138.7,0.00080544]
[1768316737507,6.37064406,3139.4,3138.7,0.00080544]
[1768316737685,0.96849419,3139.3,3138.7,0.00080544]
[1768316738000,0.001,3139.6,3138.7,0.00080544]
[1768316740106,0.001,3139.6,3138.7,0.24980544]
[1768316740272,0.001,3139.6,3138.7,0.00080544]
[1768316740680,0.96949419,3139.6,3138.7,0.00080544]
[1768316740974,0.96849419,3139.5,3138.7,0.00080544]
[1768316741200,0.001,3139.6,3138.7,0.00080544]
[1768316741918,0.001,3139.6,3138.7,0.24980544]
[1768316742084,3.18440913,3140.3,3138.8,0.91829053]
[1768316742473,0.0008052,3140.7,3138.8,0.91829053]
[1768316742677,3.18410494,3140.6,3138.8,0.91829053]
[1768316743079,3.18410494,3140.6,3138.9,15.41829053]
[1768316743284,0.0008052,3140.7,3139.1,9.55687935]
[1768316743285,7.33740207,3140.7,3139.1,9.55687935]
[1768316743710,4.15335073,3140.7,3139.1,13.66079633]
[1768316743882,4.15331067,3140.7,3139.1,13.66079633]
[1768316744199,7.33732195,3140.7,3139.2,0.91829053]